fUST/lending_fUST_20240926
["ID","MTS","AMOUNT","RATE_DAILY","PERIOD"]
[339211810,1727343041368,-151.0,0.0001609,2]
[339211811,1727343041378,-151.0,0.0001609,2]
[339211812,1727343041387,-151.0,0.0001609,2]
[339211813,1727343041396,-151.0,0.0001609,2]
[339211814,1727343041407,-194.406691,0.0001609,2]
[339211815,1727343041417,-194.406691,0.0001609,2]
[339211816,1727343041591,-194.406691,0.0001609,2]
[339211817,1727343041603,-194.406691,0.0001609,2]
[339211818,1727343041614,-125653.058434,0.0001609,2]
[339211819,1727343041625,-151.0,0.0001609,2]
[339211820,1727343041635,-23546.45565144,0.000161,2]
[339211821,1727343042146,-331.2412426,0.000161,2]
[339211822,1727343042218,500.0,0.00021999,120]
[339211823,1727343042282,373.56228205,0.00021999,120]
[339211850,1727343165194,501.77638493,0.00021999,120]
[339211851,1727343233176,500.0,0.00021999,120]
[339211852,1727343240216,479.3739281,0.00021999,120]
[339211853,1727343251817,501.31487923,0.00021999,120]
[339211854,1727343260926,507.77243828,0.00021999,120]
[339211855,1727343314741,256.01810035,0.00021999,120]
[339211856,1727343350240,500.0,0.00021999,120]
[339211858,1727343436919,500.0,0.0001411,2]
[339211870,1727343935147,-300.0,0.00014971,2]
[339211871,1727343935170,-300.0,0.00014971,2]
[339211872,1727343935193,-104.642497,0.00014972,2]
[339211901,1727344232545,-209.52019565,0.00015016,2]
[339211902,1727344232554,-193.466504,0.00015116,2]
[339211903,1727344232563,-193.466504,0.0001551,2]
[339211904,1727344232573,-79.94679635,0.00015783,2]
[339211942,1727344238847,-5713.75453753,0.00014951,2]
[339211953,1727344238949,-12577.17589837,0.00014951,2]
[339211955,1727344238959,-3691.8484015,0.00015783,2]
[339211957,1727344238968,-193.466504,0.00015904,2]
[339211959,1727344238978,-1380.68789131,0.0001592,2]
[339211961,1727344238988,-525.0,0.00015971,2]
[339211963,1727344238997,-1217.0,0.00015971,2]
[339211965,1727344239006,-3000.0,0.00016,2]
[339211967,1727344239016,-1000.0,0.00016,16]
[339211969,1727344239025,-500.0,0.00016009,2]
[339211971,1727344239035,-500.0,0.00016009,2]
[339211973,1727344239045,-249.10569438,0.00016009,2]
[339211975,1727344239056,-3000.0,0.0001601,2]
[339211977,1727344239067,-3000.0,0.0001602,2]
[339211978,1727344239076,-3000.0,0.0001603,2]
[339211980,1727344239085,-3000.0,0.0001604,2]
[339211982,1727344239095,-2173.92726259,0.0001605,2]
[339211985,1727344239111,-826.07273741,0.0001605,2]
[339211987,1727344239120,-1650.42405131,0.0001606,2]
[339211989,1727344239131,-1349.57594869,0.0001606,2]
[339211991,1727344239144,-3000.0,0.0001607,2]
[339211993,1727344239154,-566.56446736,0.00016073,2]
[339211995,1727344239164,-159.4915212,0.00016079,2]
[339211997,1727344239174,-3000.0,0.0001608,2]
[339211999,1727344239183,-500.0,0.00016089,2]
[339212001,1727344239192,-382.65577228,0.00016089,2]
[339212003,1727344239202,-163.72261,0.00016089,2]
[339212005,1727344239211,-500.0,0.00016089,2]
[339212007,1727344239220,-3000.0,0.0001609,2]
[339212008,1727344239230,-2806.33168086,0.0001609,2]
[339212010,1727344239239,-15074.78910354,0.0001609,2]
[339212029,1727344240677,-31205.55883629,0.0001609,2]
[339212061,1727344881109,500.0,0.00021999,120]
[339212064,1727345158216,-250.0,0.00015035,2]
[339212065,1727345158240,-806.98072523,0.00015808,2]
[339212092,1727345431763,-519.52250541,0.00015971,2]
[339212135,1727345439763,-697.47749459,0.00015971,2]
[339212136,1727345439774,-1208.10190494,0.00015999,2]
[339212137,1727345439786,-3000.0,0.00016,2]
[339212138,1727345439797,-3000.0,0.0001601,2]
[339212139,1727345439808,-174.0,0.00016019,2]
[339212140,1727345439818,-3000.0,0.0001602,2]
[339212141,1727345439829,-3000.0,0.0001603,2]
[339212142,1727345439839,-3000.0,0.0001604,2]
[339212143,1727345439849,-3000.0,0.0001605,2]
[339212144,1727345439858,-3000.0,0.0001606,2]
[339212145,1727345439867,-3000.0,0.0001607,2]
[339212146,1727345439877,-3000.0,0.0001608,2]
[339212147,1727345439886,-3000.0,0.0001609,2]
[339212148,1727345439899,-1445.09617094,0.00016099,2]
[339212149,1727345439912,-6122.30310596,0.000161,2]
[339212150,1727345439927,-18839.10202709,0.000161,2]
[339212738,1727345897199,500.05561847,0.00021999,120]
[339213802,1727346355177,-631.06959039,0.00014883,2]
[339214279,1727346631986,-1080.06769232,0.00014651,2]
[339214282,1727346632001,-186.92795168,0.00014651,2]
[339214284,1727346632011,-175.575444,0.0001469,2]
[339214285,1727346632021,-160.628835,0.00014971,2]
[339214286,1727346632031,-115.34153051,0.00015049,2]
[339214287,1727346632043,-45.28730449,0.00015049,2]
[339214288,1727346632053,-160.628835,0.00015127,2]
[339214289,1727346632063,-160.628835,0.00015205,2]
[339214290,1727346632073,-108.87440736,0.00015283,2]
[339214291,1727346632084,-51.75442764,0.00015283,2]
[339214293,1727346632094,-160.628835,0.00015361,2]
[339214294,1727346632103,-160.628835,0.00015439,2]
[339214295,1727346632112,-53.97005811,0.00015517,2]
[339214296,1727346632128,-106.65877689,0.00015517,2]
[339214297,1727346632138,-160.628835,0.00015595,2]
[339214298,1727346632148,-166.57157851,0.000156,2]
[339214421,1727346640026,-42.56583929,0.000156,2]
[339214422,1727346640036,-209.1374178,0.000156,2]
[339214424,1727346640046,-5053.19026744,0.00015637,2]
[339214425,1727346640056,-160.628835,0.00015673,2]
[339214426,1727346640066,-160.628835,0.00015752,2]
[339214427,1727346640075,-236.1948853,0.00015752,2]
[339214428,1727346640085,-1057.08916684,0.0001596,2]
[339214429,1727346640094,-3000.0,0.00016,2]
[339214430,1727346640103,-2832.00519117,0.00016,2]
[339214478,1727346646051,-836.32779142,0.00015973,2]
[339214611,1727346721281,190.984547,0.00014295,2]
[339214885,1727346924611,202.488001,0.00013014,2]
[339215136,1727347422759,460.0,0.000141,30]
[339215212,1727347550125,-314.009032,0.00014379,2]
[339215213,1727347550151,-161.222999,0.00014782,2]
[339215214,1727347550178,-300.0,0.00014843,2]
[339215215,1727347550201,-57.95317534,0.00014843,2]
[339215276,1727347674249,202.488001,0.00013014,2]
[339215328,1727347832217,-300.0,0.00014469,2]
[339215330,1727347832227,-15656.7636715,0.0001447,2]
[339215332,1727347832236,-250.0,0.00014473,2]
[339215334,1727347832246,-326.820053,0.00014643,2]
[339215336,1727347832255,-161.222999,0.00014936,2]
[339215338,1727347832275,-161.222999,0.0001509,2]
[339215340,1727347832284,-161.222999,0.00015245,2]
[339215342,1727347832293,-161.222999,0.00015399,2]
[339215344,1727347832303,-356.8764999,0.00015478,2]
[339215346,1727347832314,-153.1745011,0.00015478,2]
[339215348,1727347832323,-161.222999,0.00015553,2]
[339215350,1727347832333,-2012.64688977,0.00015788,2]
[339215352,1727347832344,-3502.46025038,0.00015788,2]
[339215354,1727347832354,-3078.67732167,0.00015788,2]
[339215408,1727347838553,-851.30631796,0.00015788,2]
[339215420,1727347840118,-1123.20662781,0.00015788,2]
[339215422,1727347840128,-184.49341041,0.000158,2]
[339215424,1727347840138,-420.0,0.00015844,2]
[339215426,1727347840147,-1057.08916684,0.000159,2]
[339215428,1727347840157,-1217.0,0.00015965,2]
[339215430,1727347840167,-3000.0,0.00016,2]
[339215432,1727347840177,-1258.2,0.00016,2]
[339215434,1727347840187,-3000.0,0.0001601,2]
[339215436,1727347840197,-3000.0,0.0001602,2]
[339215438,1727347840206,-157.13941931,0.00016029,2]
[339215441,1727347840220,-570.0,0.00016029,2]
[339215443,1727347840230,-162.54855797,0.00016029,2]
[339215445,1727347840239,-500.0,0.00016029,2]
[339215447,1727347840248,-500.0,0.00016029,2]
[339215449,1727347840259,-500.0,0.00016029,2]
[339215451,1727347840270,-500.0,0.00016029,2]
[339215453,1727347840279,-500.0,0.00016029,2]
[339215455,1727347840288,-500.0,0.00016029,2]
[339215457,1727347840298,-604.69825248,0.00016029,2]
[339215459,1727347840307,-500.0,0.00016029,2]
[339215461,1727347840317,-500.0,0.00016029,2]
[339215463,1727347840326,-500.0,0.00016029,2]
[339215465,1727347840336,-3000.0,0.0001603,2]
[339215467,1727347840346,-151.0,0.00016036,2]
[339215469,1727347840355,-151.0,0.00016036,2]
[339215471,1727347840365,-151.0,0.00016037,2]
[339215473,1727347840375,-349.901211,0.00016037,2]
[339215475,1727347840384,-349.901211,0.00016037,2]
[339215476,1727347840394,-151.0,0.00016037,2]
[339215478,1727347840404,-151.0,0.00016039,2]
[339215479,1727347840413,-233.137108,0.00016039,2]
[339215480,1727347840423,-3000.0,0.0001604,2]
[339215481,1727347840432,-3000.0,0.0001605,2]
[339215482,1727347840442,-151.0,0.0001605,2]
[339215483,1727347840451,-194.805391,0.0001605,2]
[339215484,1727347840460,-462.24925672,0.0001606,2]
[339215535,1727347846130,-2537.75074328,0.0001606,2]
[339215536,1727347846142,-151.0,0.0001606,2]
[339215537,1727347846152,-349.901211,0.0001606,2]
[339215538,1727347846162,-349.901211,0.0001606,2]
[339215539,1727347846172,-151.0,0.0001606,2]
[339215540,1727347846181,-3000.0,0.0001607,2]
[339215541,1727347846191,-151.0,0.0001607,2]
[339215542,1727347846201,-3000.0,0.0001608,2]
[339215543,1727347846210,-151.0,0.0001608,2]
[339215544,1727347846220,-3000.0,0.0001609,2]
[339215545,1727347846230,-151.0,0.0001609,2]
[339215546,1727347846240,-349.901211,0.0001609,2]
[339215547,1727347846250,-349.901211,0.0001609,2]
[339215548,1727347846260,-151.0,0.0001609,2]
[339215549,1727347846271,-151.0,0.00016096,2]
[339215550,1727347846285,-151.0,0.00016096,2]
[339215551,1727347846295,-151.0,0.00016096,2]
[339215553,1727347846305,-151.0,0.00016097,2]
[339215555,1727347846315,-1204.24680912,0.00016099,2]
[339215556,1727347846325,-12105.72693014,0.000161,2]
[339215557,1727347846334,-500.0,0.000161,2]
[339215558,1727347846344,-300.0,0.000161,6]
[339215559,1727347846354,-152.517565,0.000161,2]
[339215560,1727347846365,-151.0,0.000161,2]
[339215561,1727347846376,-157.907384,0.000161,2]
[339215562,1727347846386,-151.409785,0.000161,2]
[339215563,1727347846396,-3000.0,0.000161,2]
[339215564,1727347846406,-151.0,0.000161,2]
[339215565,1727347846415,-349.901211,0.000161,2]
[339215566,1727347846425,-349.901211,0.000161,2]
[339215567,1727347846434,-151.0,0.000161,2]
[339215568,1727347846444,-151.0,0.000161,2]
[339215569,1727347846455,-3000.0,0.0001611,2]
[339215570,1727347846466,-151.0,0.0001612,2]
[339215571,1727347846476,-3000.0,0.0001612,2]
[339215572,1727347846486,-151.0,0.0001612,2]
[339215573,1727347846495,-349.901211,0.0001612,2]
[339215574,1727347846505,-349.901211,0.0001612,2]
[339215575,1727347846516,-151.0,0.0001612,2]
[339215576,1727347846527,-163.32008314,0.0001612,2]
[339215577,1727347846539,-3000.0,0.0001613,2]
[339215578,1727347846549,-163.05189266,0.00016139,2]
[339215579,1727347846559,-500.0,0.00016139,2]
[339215580,1727347846569,-617.85904059,0.00016139,2]
[339215581,1727347846579,-3000.0,0.0001614,2]
[339215582,1727347846589,-151.0,0.0001614,2]
[339215583,1727347846598,-170.592714,0.0001614,2]
[339215584,1727347846608,-3136.14482207,0.0001614,2]
[339215585,1727347846618,-34189.80802907,0.0001614,2]
[339215605,1727347954811,169.4,0.00010959,2]
[339215608,1727347960751,1661.62,0.00014,2]
[339215611,1727347965416,847.04,0.00010959,2]
[339215621,1727348473380,190.892342,0.00013014,2]
[339215622,1727348548962,-345.147412,0.00015179,2]
[339215623,1727348548985,-2063.3264374,0.00015194,2]
[339215624,1727348549009,-163.428858,0.00015321,2]
[339215625,1727348549033,-270.273,0.00015979,2]
[339215626,1727348549057,-2157.8242926,0.00016,2]
[339215627,1727348635099,500.0,0.00021999,120]
[339215628,1727348635282,161.1,0.00021999,120]
[339215630,1727348669755,506.83400285,0.00021999,120]
[339215634,1727348755159,-172.573706,0.0001519,2]
[339215635,1727348755182,-806.98072523,0.00015714,2]
[339215636,1727348755204,-190.94674211,0.00016,2]
[339215637,1727348792939,500.0,0.00021999,120]
[339215638,1727348795010,511.91733741,0.00021999,120]
[339215639,1727348822478,553.09233641,0.00021999,120]
[339215640,1727348846272,-163.428858,0.00015314,2]
[339215641,1727348846296,-122.43110809,0.00016,2]
[339215675,1727349032347,-190.892342,0.00014986,2]
[339215676,1727349032358,-250.0,0.00015258,2]
[339215677,1727349032368,-2686.6221498,0.00016,2]
[339215678,1727349032377,-1332.7455082,0.0001601,2]
[339215679,1727349032393,-656.90878816,0.0001601,2]
[339215680,1727349032406,-1010.34570364,0.0001601,2]
[339215681,1727349032415,-3000.0,0.0001602,2]
[339215682,1727349032425,-300.0,0.00016026,2]
[339215683,1727349032434,-300.0,0.00016026,2]
[339215685,1727349032444,-5900.242495,0.0001603,2]
[339215687,1727349032453,-300.0,0.000161,6]
[339215689,1727349032462,-1003.5390076,0.00016139,2]
[339215691,1727349032472,-500.0,0.00016164,2]
[339215693,1727349032481,-153.0,0.000162,2]
[339215694,1727349032491,-3204.998,0.00016209,2]
[339215695,1727349032501,-300.133,0.00016209,2]
[339215696,1727349032511,-160.0,0.00016235,3]
[339215697,1727349032521,-194.31780245,0.00016235,5]
[339215698,1727349032532,-805.64,0.000163,2]
[339215699,1727349032543,-174.950605,0.00016401,2]
[339215700,1727349032554,-174.950605,0.00016401,2]
[339215701,1727349032564,-151.0,0.0001641,2]
[339215702,1727349032573,-151.0,0.0001641,2]
[339215703,1727349032582,-151.0,0.0001641,2]
[339215704,1727349032592,-151.0,0.0001641,2]
[339215705,1727349032602,-151.0,0.0001641,2]
[339215706,1727349032612,-151.0,0.0001641,2]
[339215707,1727349032622,-151.0,0.0001641,2]
[339215708,1727349032632,-622.74425027,0.00016499,2]
[339215709,1727349032641,-500.0,0.00016499,2]
[339215710,1727349032651,-25182.78381473,0.000165,2]
[339215711,1727349032660,-151.0,0.000165,2]
[339215712,1727349032669,-151.0,0.000165,2]
[339215713,1727349032679,-174.950605,0.000165,2]
[339215714,1727349032688,-174.950605,0.000165,2]
[339215715,1727349032698,-151.0,0.00016529,2]
[339215716,1727349032707,-500.0,0.00016564,2]
[339215717,1727349032719,-282.50132842,0.00016564,2]
[339215718,1727349032728,-11566.64566707,0.00016565,2]
[339215719,1727349032743,-6199.10792686,0.00016565,2]
[339215725,1727349038859,-3381.24115836,0.00016565,2]
[339215854,1727349046522,-836.28250633,0.00016564,2]
[339215855,1727349046532,-998.11995129,0.00016565,2]
[339215856,1727349046541,-18575.0074927,0.00016565,2]
[339215857,1727349046550,-163.32008314,0.00016565,2]
[339215858,1727349046560,-54961.37925106,0.00016565,2]
[339215860,1727349171770,501.58664377,0.00021999,120]
[339215861,1727349213199,185.01639292,0.00021999,120]
[339215864,1727349415629,506.0014003,0.00021999,120]
[339215865,1727349417830,500.0,0.00021999,120]
[339215866,1727349418088,205.37937565,0.00021999,120]
[339215867,1727349430632,501.4020459,0.00021999,120]
[339215870,1727349867260,350.80231017,0.00021999,120]
[339215871,1727349913738,262.95,0.00016953,120]
[339215873,1727349934164,-172.573706,0.00015669,2]
[339215874,1727349934189,-268.1787158,0.00015702,2]
[339215875,1727349934214,-150.0,0.00016,2]
[339215876,1727349934240,-230.16032689,0.00016164,2]
[339215877,1727350033148,-269.83967311,0.00016164,2]
[339215878,1727350033171,-0.10716746,0.000162,2]
[339215880,1727350117615,8575.20827265,0.00021,60]
[339215913,1727350235983,-631.0695904,0.00015731,2]
[339215914,1727350235993,-105.16781957,0.000161,6]
[339215961,1727350238921,-194.83218043,0.000161,6]
[339215963,1727350238931,-500.0,0.00016164,2]
[339215965,1727350238941,-55.26870157,0.000162,2]
[339216122,1727350246619,-220.9786404,0.000162,2]
[339216138,1727351142410,-190.984547,0.00014263,2]
[339216139,1727351142434,-776.87341357,0.00015014,2]
[339216196,1727351431780,-920.57621923,0.00015014,2]
[339216198,1727351431792,-161.222999,0.00015125,2]
[339216200,1727351431801,-924.95302095,0.0001592,2]
[339216202,1727351431812,-300.0,0.00015999,2]
[339216204,1727351431822,-300.0,0.00015999,2]
[339216206,1727351431831,-3169.01894925,0.00016,2]
[339216283,1727351438053,-1892.80713578,0.00016,2]
[339216331,1727351439684,-14893.60806373,0.00016,2]
[339216332,1727351439694,-10230.03575401,0.00016,2]
[339216437,1727351676698,1795.37090602,0.0001,2]
[339216462,1727352272357,237.69,0.00021,60]
[339216463,1727352294853,865.6,0.00021,60]
[339216464,1727352338170,-314.009032,0.00014895,2]
[339216465,1727352338192,-172.573706,0.00014948,2]
[339216466,1727352338214,-163.319594,0.00014986,2]
[339216467,1727352338236,-171.724241,0.00015246,2]
[339216468,1727352338263,-171.724241,0.00015288,2]
[339216469,1727352338285,-171.724241,0.00015329,2]
[339216470,1727352338306,-121.06179707,0.00015371,2]
[339216517,1727352634485,-163.319594,0.00014986,2]
[339216518,1727352634494,-154.93609303,0.00015271,2]
[339216519,1727352634504,-47.5355751,0.00015371,2]
[339216549,1727352638533,-3.12686883,0.00015371,2]
[339216550,1727352638544,-420.0,0.000154,2]
[339216551,1727352638553,-171.724241,0.00015413,2]
[339216552,1727352638562,-171.724241,0.00015455,2]
[339216553,1727352638572,-171.724241,0.00015497,2]
[339216554,1727352638581,-171.724241,0.00015538,2]
[339216555,1727352638591,-171.724241,0.0001558,2]
[339216556,1727352638601,-171.724241,0.00015622,2]
[339216557,1727352638610,-171.724241,0.00015664,2]
[339216558,1727352638624,-823.478131,0.000157,2]
[339216559,1727352638634,-171.724241,0.00015706,2]
[339216560,1727352638644,-171.724241,0.00015748,2]
[339216561,1727352638653,-2879.23761567,0.00015758,2]
[339216593,1727352677074,156.98,0.00010959,2]
[339216596,1727352872130,5000.0,0.00021,60]
[339216598,1727353157896,1239.3,0.00014111,2]
[339216599,1727353211220,3285.3,0.00014111,2]
[339216601,1727353410147,10000.0,0.00021,60]
[339216603,1727353545164,-1003.33515902,0.00014243,2]
[339216604,1727353554949,186.538395,0.00014086,2]
[339216612,1727353751106,-1017.66708478,0.00014243,2]
[339216613,1727353751128,-300.0,0.00014273,2]
[339216614,1727353751149,-300.0,0.00014273,2]
[339216615,1727353751171,-8884.850625,0.00014274,2]
[339216616,1727353751197,-163.360935,0.00014319,2]
[339216617,1727353751219,-129.81673634,0.00014413,2]
[339216618,1727353772173,-33.54419866,0.00014413,2]
[339216619,1727353772198,-163.360935,0.00014506,2]
[339216620,1727353780027,139.74144397,0.00014442,2]
[339216667,1727353840230,-20.71183803,0.00014442,2]
[339216668,1727353840240,-160.453282,0.00014446,2]
[339216669,1727353840249,-160.453282,0.00014451,2]
[339216670,1727353840259,-160.453282,0.00014456,2]
[339216671,1727353840269,-160.453282,0.00014461,2]
[339216672,1727353840277,-160.453282,0.00014466,2]
[339216673,1727353840287,-160.453282,0.0001447,2]
[339216674,1727353840301,-160.453282,0.00014475,2]
[339216675,1727353840310,-160.453282,0.0001448,2]
[339216676,1727353840320,-160.453282,0.00014485,2]
[339216677,1727353840329,-160.453282,0.0001449,2]
[339216678,1727353840339,-160.453282,0.00014495,2]
[339216679,1727353840348,-160.453282,0.00014499,2]
[339216680,1727353840357,-160.453282,0.00014504,2]
[339216681,1727353840366,-160.453282,0.00014509,2]
[339216682,1727353840375,-160.453282,0.00014514,2]
[339216683,1727353840385,-163.360935,0.00014599,2]
[339216684,1727353840394,-163.360935,0.00014692,2]
[339216685,1727353840403,-163.360935,0.00014786,2]
[339216686,1727353840412,-163.360935,0.00014879,2]
[339216687,1727353840421,-163.360935,0.00014972,2]
[339216688,1727353840430,-163.360935,0.00015065,2]
[339216689,1727353840439,-4869.54305049,0.0001536,2]
[339216690,1727353840449,-151.0,0.00015414,2]
[339216691,1727353840458,-300.0,0.00015414,2]
[339216692,1727353840467,-300.0,0.00015414,2]
[339216693,1727353840477,-151.0,0.00015464,2]
[339216694,1727353840486,-151.0,0.00015464,2]
[339216695,1727353840495,-151.0,0.00015464,2]
[339216696,1727353840504,-151.0,0.00015464,2]
[339216697,1727353840514,-151.0,0.00015675,2]
[339216698,1727353840523,-151.0,0.00015675,2]
[339216699,1727353840533,-151.0,0.00015675,2]
[339216700,1727353840543,-154.244663,0.00015675,2]
[339216701,1727353840558,-151.0,0.00015675,2]
[339216702,1727353840567,-152.731474,0.00015675,2]
[339216703,1727353840577,-151.0,0.00015675,2]
[339216704,1727353840586,-151.0,0.00015675,2]
[339216705,1727353840595,-151.0,0.00015675,2]
[339216706,1727353840605,-164.834078,0.00015675,2]
[339216707,1727353840614,-151.0,0.00015675,2]
[339216708,1727353840624,-151.0,0.00015675,2]
[339216709,1727353840634,-151.0,0.00015675,2]
[339216710,1727353840643,-151.0,0.00015675,2]
[339216711,1727353840652,-151.0,0.00015675,2]
[339216712,1727353840662,-151.0,0.00015675,2]
[339216713,1727353840671,-151.0,0.00015675,2]
[339216714,1727353840680,-151.0,0.00015675,2]
[339216715,1727353840689,-151.0,0.00015675,2]
[339216716,1727353840699,-151.0,0.00015675,2]
[339216717,1727353840708,-151.0,0.00015675,2]
[339216718,1727353840717,-151.0,0.00015675,2]
[339216719,1727353840728,-151.0,0.00015692,2]
[339216720,1727353840737,-151.0,0.00015701,2]
[339216721,1727353840747,-151.0,0.00015807,2]
[339216722,1727353840757,-151.0,0.00015807,2]
[339216723,1727353840766,-151.0,0.00015807,2]
[339216724,1727353840775,-213.013136,0.00015807,2]
[339216725,1727353840785,-151.0,0.00015807,2]
[339216726,1727353840795,-151.0,0.00015807,2]
[339216727,1727353840814,-151.0,0.00015807,2]
[339216728,1727353840824,-247.121388,0.00015899,2]
[339216729,1727353840833,-151.0,0.00015899,2]
[339216730,1727353840842,-1082.32604429,0.00015899,2]
[339216731,1727353840851,-420.0,0.0001595,2]
[339216732,1727353840861,-151.0,0.0001595,2]
[339216733,1727353840870,-151.0,0.0001595,2]
[339216734,1727353840879,-151.0,0.0001595,2]
[339216735,1727353840888,-151.0,0.0001595,2]
[339216736,1727353840898,-151.0,0.0001595,2]
[339216737,1727353840907,-151.0,0.00015999,2]
[339216738,1727353840917,-151.0,0.00015999,2]
[339216739,1727353840926,-3000.0,0.00016,2]
[339216740,1727353840935,-400.0,0.00016,2]
[339216741,1727353840945,-151.0,0.00016,2]
[339216742,1727353840955,-151.0,0.00016,2]
[339216743,1727353840964,-151.0,0.00016,2]
[339216744,1727353840973,-151.0,0.00016,2]
[339216745,1727353840982,-170.9168,0.00016,2]
[339216746,1727353840992,-3000.0,0.00016,2]
[339216747,1727353841001,-196.253529,0.00016,2]
[339216748,1727353841010,-151.0,0.00016,2]
[339216749,1727353841019,-151.0,0.00016,2]
[339216750,1727353841028,-151.0,0.00016,2]
[339216751,1727353841037,-151.0,0.00016,2]
[339216752,1727353841046,-151.0,0.00016,2]
[339216753,1727353841060,-151.0,0.00016,2]
[339216754,1727353841069,-151.0,0.00016,2]
[339216755,1727353841079,-151.0,0.00016,2]
[339216756,1727353841088,-151.0,0.00016,2]
[339216757,1727353841097,-3000.0,0.0001601,2]
[339216758,1727353841107,-247.558268,0.0001601,2]
[339216759,1727353841116,-250.684656,0.0001601,2]
[339216760,1727353841126,-151.0,0.0001601,2]
[339216761,1727353841136,-445.2959304,0.00016019,2]
[339216762,1727353841146,-500.0,0.00016019,2]
[339216763,1727353841156,-500.0,0.00016019,2]
[339216764,1727353841165,-361.79728046,0.00016019,2]
[339216765,1727353841175,-9977.71707438,0.0001602,2]
[339216766,1727353841184,-16234.30777822,0.0001602,2]
[339216767,1727353841194,-4101.534941,0.0001602,2]
[339216768,1727353841203,-170.41044,0.0001602,2]
[339216769,1727353841214,-165.225,0.0001602,2]
[339216770,1727353841227,-339.436071,0.000161,6]
[339216771,1727353841237,-500.0,0.00016164,2]
[339216772,1727353841247,-600.0,0.00016194,2]
[339216773,1727353841257,-864.15858988,0.00016199,2]
[339216774,1727353841267,-778.01,0.000162,2]
[339216775,1727353841277,-3204.998,0.00016227,2]
[339216776,1727353841286,-300.133,0.00016227,2]
[339216777,1727353841296,-251.7032571,0.00016247,2]
[339216778,1727353841309,-160.0,0.00016328,3]
[339216779,1727353841318,-194.31780245,0.00016328,5]
[339216780,1727353841327,-420.0,0.0001649,2]
[339216781,1727353841336,-200.44222355,0.000165,2]
[339216782,1727353841346,-1138.37325129,0.00016612,2]
[339216783,1727353841356,-1215.4548922,0.000167,2]
[339216784,1727353841365,-500.0,0.00016733,2]
[339216785,1727353841374,-282.50132842,0.00016733,2]
[339216786,1727353841384,-11706.2203893,0.00016734,2]
[339216798,1727353881302,235.20890203,0.00010959,2]
[339216799,1727353881327,255.70836642,0.00010959,2]
[339216800,1727353881350,368.88273155,0.00010959,2]
[339216852,1727354718794,167.91,0.00014111,2]
[339216853,1727354744244,-300.0,0.00014721,2]
[339216854,1727354744267,-869.69396293,0.00014722,2]
[339216856,1727354924858,190.984547,0.00014009,2]
[339216857,1727354986111,264.44287965,0.00014111,2]
[339216858,1727354986134,245.0,0.00014111,2]
[339216859,1727354986158,4045.35712035,0.00014111,2]
[339216885,1727355032256,-300.0,0.00014721,2]
[339216886,1727355032266,-16069.34223157,0.00014722,2]
[339216887,1727355032275,-314.009032,0.00014781,2]
[339216888,1727355032285,-186.538396,0.00014793,2]
[339216889,1727355032295,-163.3609365,0.00014879,2]
[339216890,1727355032303,-280.0522746,0.00014986,2]
[339216891,1727355032313,-400.0,0.000154,2]
[339216892,1727355032322,-84.29440717,0.00015675,2]
[339217014,1727355038417,53472.92327805,0.00013,2]
[339217035,1727355040268,-90.65619783,0.00015675,2]
[339217036,1727355040278,-174.950605,0.00015675,2]
[339217037,1727355040287,-1356.65853,0.00015742,2]
[339217038,1727355040296,-151.0,0.0001578,2]